bitfinex/quotes_ETHUSD_20240927
["timestamp","ask_amount","ask_price","bid_price","bid_amount"]
[1727433126418,7.58390873,2652.1,2652.0,0.8323]
[1727433128242,7.58390873,2652.1,2651.5,3.77144]
[1727433128547,3.7715,2651.5,2651.1,0.8121]
[1727433128731,3.81331873,2651.2,2651.1,0.8121]
[1727433131224,7.58518873,2651.2,2650.7,0.7803]
[1727433131541,3.77187,2651.2,2651.1,0.00743709]
[1727433133319,7.58518873,2651.2,2651.1,0.00743709]
[1727433133532,8.7208806,2651.2,2651.1,0.00743709]
[1727433134202,9.1829806,2651.2,2651.1,0.00743709]
[1727433134643,3.77296,2650.5,2650.2,0.8044]
[1727433134842,3.81331873,2650.3,2650.2,0.8044]
[1727433135547,3.81331873,2650.3,2649.9,0.7667]
[1727433135752,3.81331873,2650.3,2649.9,4.994429]
[1727433137458,3.81331873,2650.3,2650.2,0.00743709]
[1727433139429,7.58646873,2650.3,2650.2,0.00743709]
[1727433139631,3.81331873,2650.3,2650.2,0.00743709]
[1727433141128,7.58646873,2650.3,2650.2,0.00743709]
[1727433142067,9.1845186,2650.3,2650.2,0.00743709]
[1727433144746,3.77426,2649.6,2649.2,0.7503]
[1727433144947,3.81331873,2649.3,2649.2,0.7503]
[1727433145175,3.81331873,2649.3,2648.9,0.7503]
[1727433145345,3.81331873,2649.1,2648.9,0.7503]
[1727433145541,3.77438,2649.5,2648.9,0.7503]
[1727433145542,3.81331873,2649.3,2648.9,4.977901]
[1727433145781,3.81331873,2649.3,2649.0,3.77497]
[1727433148686,3.81331873,2649.5,2649.0,3.77497]
[1727433148990,7.58760873,2649.5,2649.0,3.77497]
[1727433149300,7.54785,2649.8,2649.2,3.77464]
[1727433149462,3.81331873,2649.7,2649.2,7.54928]
[1727433149652,3.81331873,2649.9,2649.1,0.8065]
[1727433149856,3.81331873,2649.9,2649.5,0.8065]
[1727433150266,3.81331873,2649.9,2649.5,1.642016]
[1727433150588,3.81331873,2649.7,2649.5,1.642016]
[1727433151423,3.81331873,2649.7,2649.5,0.8065]
[1727433151558,7.58739873,2649.7,2649.2,3.7747]
[1727433151762,3.81331873,2649.5,2649.2,3.7747]
[1727433152163,3.81331873,2649.5,2649.1,0.8067]
[1727433152359,3.81331873,2649.5,2649.2,4.232846]
[1727433152904,3.81331873,2649.5,2649.3,3.77455]
[1727433153083,3.81331873,2649.5,2649.2,4.232846]
[1727433153289,3.81331873,2649.5,2649.2,4.232786]
[1727433154159,3.81331873,2649.5,2649.1,4.5815]
[1727433155691,3.81331873,2649.5,2649.2,3.77463]
[1727433157391,3.81331873,2649.5,2649.2,3.77462]
[1727433158408,3.81331873,2649.5,2649.1,4.58156]
[1727433159066,3.81331873,2649.5,2649.2,3.77471]
[1727433161364,3.81331873,2649.3,2649.0,4.58387]
[1727433161704,3.81331873,2649.3,2649.0,0.809]
[1727433162205,3.81331873,2649.3,2649.0,4.58399]
[1727433164512,3.81331873,2649.3,2649.0,0.809]
[1727433167377,3.81331873,2649.3,2648.9,3.77514]
[1727433167613,3.81331873,2649.3,2649.0,3.77491]
[1727433168932,7.58768873,2649.5,2649.0,3.77491]
[1727433169209,7.58768873,2649.5,2649.0,4.611915]
[1727433169902,11.36205873,2649.5,2649.0,4.611915]
[1727433170536,11.36205873,2649.5,2649.0,0.837005]
[1727433170754,11.36205873,2649.5,2648.9,3.77514]
[1727433170755,11.36205873,2649.5,2648.9,7.5502]
[1727433171548,11.36205873,2649.5,2648.9,3.77506]
[1727433172150,11.36205873,2649.5,2648.9,7.55012]
[1727433172916,3.77445,2649.4,2648.9,3.77506]
[1727433173229,11.36211873,2649.5,2649.0,3.77498]
[1727433174045,7.58768873,2649.5,2649.0,3.77498]
[1727433174245,3.77444,2649.4,2649.0,3.77498]
[1727433176528,3.81331873,2649.3,2648.9,3.77515]
[1727433177660,3.81331873,2649.3,2648.9,4.6881464]
[1727433177822,7.58789873,2649.3,2648.9,4.6881464]
[1727433178656,3.81331873,2649.3,2648.9,4.6881464]
[1727433180161,3.81331873,2649.1,2648.8,4.59524]
[1727433180458,3.81331873,2649.1,2648.9,3.7751]
[1727433182159,4.27541873,2649.3,2648.9,3.7751]
[1727433182335,4.27541873,2649.3,2648.9,0.837034]
[1727433182537,4.27541873,2649.3,2648.9,4.612144]
[1727433182846,3.81331873,2649.3,2649.0,3.77499]
[1727433183458,3.81331873,2649.3,2648.9,0.837034]
[1727433183644,7.58792873,2649.3,2648.9,4.612184]
[1727433183931,7.58792873,2649.3,2648.8,4.59516]
[1727433184133,3.81331873,2649.1,2648.8,4.59516]
[1727433184342,7.58819873,2649.1,2648.8,0.82]
[1727433184555,3.81331873,2648.9,2648.6,4.60208]
[1727433184770,3.81331873,2648.9,2648.6,8.37758]
[1727433184931,3.81331873,2648.9,2648.6,4.60208]
[1727433185135,3.81331873,2648.9,2648.6,4.60205]
[1727433185538,7.58797873,2649.3,2648.8,3.77522]
[1727433185733,7.58797873,2649.3,2648.9,3.77513]
[1727433186070,3.81331873,2649.3,2649.0,0.7656]
[1727433186428,1.76408172,2649.1,2649.0,4.54059]
[1727433186866,1.76408172,2649.1,2649.0,0.7656]
[1727433188738,1.76408172,2649.1,2649.0,4.5406]
[1727433192788,1.76408172,2649.3,2649.0,5.372174]
[1727433192989,1.76408172,2649.3,2649.0,4.5406]
[1727433193168,7.5487,2649.5,2649.0,4.5406]
[1727433193368,1.76408172,2649.3,2649.0,4.5406]
[1727433193861,4.23626,2649.6,2649.1,3.77475]
[1727433194069,1.76408172,2649.4,2649.1,3.77475]
[1727433196301,1.76408172,2649.4,2649.0,0.7656]
[1727433196513,7.54869,2649.5,2649.0,0.7656]
[1727433196514,1.76408172,2649.2,2649.0,4.5406]
[1727433197595,1.76408172,2649.2,2649.0,5.372087]
[1727433201180,1.76408172,2649.2,2649.0,0.7656]
[1727433201388,1.76408172,2649.2,2648.8,0.8063]
[1727433201560,1.76408172,2649.2,2648.8,4.58157]
[1727433202302,1.76408172,2649.2,2648.9,3.77507]
[1727433202511,1.76408172,2649.2,2648.9,8.008277]
[1727433202661,1.76408172,2649.2,2648.9,4.233207]
[1727433202860,3.77445,2649.4,2648.9,4.233207]
[1727433202861,1.76408172,2649.4,2649.0,3.77494]
[1727433203892,5.53853172,2649.4,2648.9,4.233207]
[1727433204486,3.77458,2649.3,2648.9,4.233207]
[1727433204687,3.77458,2649.3,2648.9,3.77507]
[1727433205411,1.76408172,2649.0,2648.8,0.8063]
[1727433205573,1.76408172,2649.0,2648.7,3.77533]
[1727433206703,4.23682,2649.2,2648.6,7.53333]
[1727433206704,1.76408172,2648.8,2648.6,7.53333]
[1727433206880,1.76408172,2648.8,2648.5,3.77567]
[1727433207276,2.22618172,2648.8,2648.5,3.77567]
[1727433207675,2.22618172,2648.8,2645.6,0.39507295]
[1727433207676,5.53966172,2648.6,2648.2,0.7529]
[1727433207883,1.76408172,2648.3,2648.2,0.7529]
[1727433208111,1.76408172,2648.3,2647.9,0.7529]
[1727433208303,1.76408172,2648.1,2648.0,3.77635]
[1727433208809,1.76408172,2648.1,2647.9,0.7529]
[1727433209313,1.76408172,2648.1,2647.9,4.52947]
[1727433210799,1.76408172,2648.1,2647.7,3.77678]
[1727433211114,1.76408172,2647.9,2647.6,4.5566]
[1727433211776,1.76408172,2647.9,2647.6,3.7769]
[1727433212519,1.76408172,2647.7,2647.4,3.77721]
[1727433213182,1.76408172,2647.7,2647.4,7.55441]
[1727433213609,1.76408172,2647.9,2647.6,3.77692]
[1727433214386,3.82575342,2648.0,2647.6,3.77692]
[1727433215585,3.82575342,2648.0,2647.5,3.77711]
[1727433215985,7.60220342,2648.0,2647.5,3.77711]
[1727433216506,7.60220342,2648.0,2647.4,3.77721]
[1727433216687,3.82575342,2648.0,2647.4,3.7772]
[1727433216890,3.82575342,2648.0,2647.6,3.777]
[1727433217184,3.82575342,2648.0,2647.6,3.77692]
[1727433217494,8.06401342,2648.2,2647.7,4.57586]
[1727433217686,4.28785342,2648.2,2647.8,3.7767]
[1727433219347,11.07582,2648.5,2647.9,3.77648]
[1727433219348,0.4621,2648.4,2647.9,3.77648]
[1727433219850,8.06372342,2648.4,2647.9,3.77648]
[1727433220030,3.77602,2648.3,2647.8,3.77662]
[1727433220209,3.77602,2648.3,2647.7,4.57588]
[1727433220411,4.28785342,2648.4,2647.7,1.29521259]
[1727433220745,3.82575342,2648.4,2648.0,3.77642]
[1727433220905,3.82575342,2648.4,2647.9,3.77657]
[1727433220906,7.60165342,2648.4,2647.9,3.77657]
[1727433221107,7.60165342,2648.4,2647.9,4.61181]
[1727433221542,3.82575342,2648.4,2647.9,3.77657]
[1727433221746,3.82575342,2648.4,2648.0,3.77641]
[1727433221943,3.82575342,2648.4,2647.9,3.77657]
[1727433222454,7.60162342,2648.4,2647.9,3.77657]
[1727433222746,3.82575342,2648.4,2648.1,0.7819]
[1727433223350,4.23792,2648.5,2648.1,0.7819]
[1727433223535,7.60133342,2648.6,2648.1,4.55817]
[1727433224055,0.4621,2648.7,2648.1,1.615374]
[1727433224216,0.4621,2648.7,2648.1,0.7819]
[1727433224415,0.4621,2648.7,2648.3,3.77592]
[1727433226862,7.60107342,2648.8,2648.3,3.77592]
[1727433228022,11.37644342,2648.8,2648.3,3.77592]
[1727433228362,3.82575342,2649.0,2648.7,3.77542]
[1727433228568,7.60029342,2649.4,2648.9,3.77508]
[1727433228857,7.60029342,2649.4,2648.8,0.8145]
[1727433229043,3.77468,2649.3,2648.8,0.8145]
[1727433229445,3.77473,2649.2,2648.8,0.8145]
[1727433229765,3.82575342,2649.2,2648.8,1.273486]
[1727433229923,7.60029342,2649.4,2648.9,3.77513]
[1727433230125,3.77458,2649.3,2648.9,3.77513]
[1727433230763,7.60029342,2649.4,2648.9,3.77513]
[1727433230922,7.60029342,2649.4,2648.9,4.6574556]
[1727433231256,3.82575342,2649.6,2649.2,3.77462]
[1727433231569,3.77401,2649.7,2649.2,3.77462]
[1727433231928,7.5481,2649.7,2649.2,3.77462]
[1727433232241,3.77401,2649.7,2649.2,3.77462]
[1727433232450,3.77401,2649.7,2649.1,0.7842]
[1727433232645,7.60001342,2649.6,2649.1,0.7842]
[1727433232850,3.82575342,2649.6,2649.1,0.7842]
[1727433233155,3.82575342,2649.4,2649.1,0.7842]
[1727433234553,7.59997342,2649.6,2649.1,4.55894]
[1727433234864,7.59995342,2649.6,2649.1,4.55894]
[1727433235226,3.7743,2649.5,2649.1,0.7842]
[1727433236052,3.7743,2649.5,2649.1,4.55905]
[1727433237753,3.77401,2649.7,2649.2,4.56878]
[1727433238072,7.54811,2649.7,2649.2,0.7941]
[1727433238254,3.77416,2649.6,2649.2,0.7941]
[1727433239262,8.06201342,2649.6,2649.2,0.7941]
[1727433240069,3.82575342,2649.6,2649.2,4.5688]
[1727433240232,3.77401,2649.7,2649.2,5.410707]
[1727433240427,7.59966342,2649.8,2649.3,7.54905]
[1727433240668,7.59966342,2649.8,2649.3,3.77449]
[1727433242079,3.77404,2649.7,2649.2,1.636007]
[1727433242282,3.82575342,2649.4,2649.0,0.7683]
[1727433243148,3.82575342,2649.4,2649.0,4.5433]
[1727433243352,3.82575342,2649.4,2649.0,4.5420582]
[1727433243554,0.4621,2649.5,2649.0,8.3170582]
[1727433243762,3.82575342,2649.2,2648.8,3.7752]
[1727433243962,4.2365,2649.5,2648.9,3.77506]
[1727433243963,3.82575342,2649.4,2648.9,3.77506]
[1727433244170,3.7746,2649.3,2648.8,3.77529]
[1727433244864,7.5493,2649.3,2648.8,3.77529]
[1727433245066,3.7746,2649.3,2648.8,3.77519]
[1727433245267,3.7746,2649.3,2648.6,3.77547]
[1727433245268,3.82575342,2649.2,2648.6,3.77547]
[1727433245586,4.23824,2649.1,2648.6,3.77547]
[1727433245882,5.42210434,2649.1,2648.6,3.77547]
[1727433246044,3.82575342,2649.0,2648.6,3.77547]
[1727433246438,5.42210434,2649.1,2648.6,7.55095]
[1727433246770,4.23824,2649.1,2648.6,3.77547]
[1727433247139,4.23824,2649.1,2648.4,4.53665]
[1727433247140,3.82575342,2649.0,2648.4,4.53665]
[1727433247340,7.60084342,2649.0,2648.4,8.31241]
[1727433247569,7.60084342,2649.0,2648.4,4.53665]
[1727433248465,5.00966176,2649.0,2648.4,4.53665]
[1727433248644,3.82575342,2648.8,2648.4,3.77575]
[1727433249179,3.77518,2648.9,2648.4,3.77575]
[1727433249886,3.82575342,2648.6,2648.2,3.7761]
[1727433250180,7.60136342,2648.6,2648.0,8.32858]
[1727433250348,7.60136342,2648.6,2648.0,4.55224]
[1727433250550,8.78537276,2648.6,2648.0,4.55224]
[1727433250960,8.78537276,2648.6,2648.0,3.77634]
[1727433251287,3.82575342,2648.4,2648.1,3.77625]
[1727433251651,8.78535276,2648.6,2648.1,3.77625]
[1727433252547,5.00976276,2648.6,2648.1,3.77625]
[1727433252746,8.78536276,2648.6,2648.1,3.77618]
[1727433252952,5.00976276,2648.6,2648.2,3.77613]
[1727433253148,3.82575342,2648.6,2648.2,3.77613]
[1727433253491,3.82575342,2648.6,2648.1,7.55236]
[1727433253684,7.60136342,2648.6,2648.1,3.77618]
[1727433253986,3.82575342,2648.6,2648.1,3.77618]
[1727433254193,3.82575342,2648.6,2648.1,7.55237]
[1727433254351,3.82575342,2648.6,2648.1,3.77618]
[1727433254552,3.82575342,2648.6,2648.2,3.77614]
[1727433255860,4.23838,2649.0,2648.2,1.507332]
[1727433256066,3.77522,2648.9,2648.3,3.77592]
[1727433256263,8.06413342,2649.0,2648.4,3.77585]
[1727433256490,8.06413342,2649.0,2648.5,3.77569]
[1727433256707,4.28905342,2649.0,2648.6,3.7755]
[1727433256915,4.28905342,2649.0,2648.6,4.5307]
[1727433257087,3.77488,2649.1,2648.6,5.361409]
[1727433257088,3.77486,2649.1,2648.6,5.361409]
[1727433257292,8.06378342,2649.2,2648.6,5.361409]
[1727433257293,8.06378342,2649.2,2648.6,5.361289]
[1727433257776,8.06378342,2649.2,2648.7,3.77542]
[1727433257978,4.28905342,2649.2,2648.6,5.361289]
[1727433258305,3.77474,2649.2,2648.7,0.5361289]
[1727433258480,7.60049342,2649.2,2648.7,0.5361289]
[1727433258909,11.37531342,2649.2,2648.7,0.5361289]
[1727433259107,7.60049342,2649.2,2648.7,4.3115289]
[1727433259413,7.60049342,2649.2,2648.8,0.88422089]
[1727433260077,7.60049342,2649.2,2648.7,4.3115289]
[1727433262674,7.60049342,2649.2,2648.7,3.7754]
[1727433262920,11.37532342,2649.2,2648.7,3.7754]
[1727433263216,7.60049342,2649.2,2648.7,3.7754]
[1727433263604,7.60049342,2649.2,2648.6,4.53075]
[1727433263806,7.60049342,2649.2,2648.6,8.30624]
[1727433263979,3.77494,2649.1,2648.6,4.53067]
[1727433264176,0.4633,2649.0,2648.4,3.77579]
[1727433264381,4.23831,2649.0,2648.5,3.77571]
[1727433264680,7.60091342,2648.9,2648.4,3.77583]
[1727433264876,3.7753,2648.8,2648.4,3.77583]
[1727433265504,7.60119342,2648.7,2648.2,3.77603]
[1727433265678,0.4633,2648.6,2648.2,3.77603]
[1727433266488,4.23894,2648.6,2648.0,3.77633]
[1727433266684,7.60147342,2648.5,2648.0,7.55267]
[1727433266980,7.60147342,2648.5,2647.9,4.54844]
[1727433266981,3.82575342,2648.3,2647.9,4.54844]
[1727433267213,3.82575342,2648.3,2648.0,3.77642]
[1727433267415,3.82575342,2648.3,2647.7,0.7719]
[1727433267416,0.4633,2648.2,2647.7,0.7719]
[1727433267614,0.4633,2648.2,2647.7,4.54864]
[1727433269416,3.82575342,2648.1,2647.6,7.55384]
[1727433270183,3.82575342,2648.1,2647.6,3.77692]
[1727433270430,3.82575342,2648.1,2647.7,3.77681]
[1727433270587,3.82575342,2648.1,2647.6,3.77692]
[1727433270787,3.82575342,2648.1,2647.6,3.77691]
[1727433271015,3.82575342,2648.1,2647.7,3.77678]
[1727433272034,3.82575342,2648.1,2647.6,3.77691]
[1727433272430,3.82575342,2648.1,2647.7,3.77682]
[1727433274300,7.60204342,2648.1,2647.7,3.77682]
[1727433274800,3.82575342,2648.1,2647.7,3.77682]
[1727433276305,0.4633,2648.2,2647.7,3.77682]
[1727433277334,4.23945,2648.2,2647.7,3.77678]
[1727433278614,4.23945,2648.2,2647.8,3.7767]
[1727433280338,8.01568,2648.2,2647.6,7.5539]
[1727433281142,4.23945,2648.2,2647.7,3.77678]
[1727433282042,4.2391,2648.5,2648.0,3.77637]
[1727433282345,3.77593,2648.4,2647.9,4.57456]
[1727433282642,3.77593,2648.4,2647.9,1.7166308]
[1727433282827,3.77593,2648.4,2647.8,3.77659]
[1727433283011,0.4633,2648.1,2647.7,4.60195]
[1727433283423,0.4633,2648.1,2647.4,3.77718]
[1727433283424,4.23963,2648.1,2647.6,3.77697]
[1727433283731,7.60225342,2648.0,2647.6,3.777]
[1727433283930,3.7765,2648.0,2647.6,3.777]
[1727433284535,3.82575342,2648.0,2647.4,4.59988]
[1727433284745,3.77666,2647.9,2647.4,4.59988]
[1727433285455,0.4633,2647.8,2647.4,3.77718]
[1727433289117,0.4633,2647.8,2647.4,7.55438]
[1727433289518,0.4633,2647.8,2647.5,3.77713]
[1727433290358,2.22923029,2647.8,2647.5,3.77713]
[1727433291545,2.22923029,2647.8,2647.4,3.77718]
[1727433291925,2.22923029,2647.8,2647.5,3.77714]
[1727433292258,0.4633,2647.8,2647.6,3.77693]
[1727433292477,2.22923029,2648.0,2647.6,3.77693]
[1727433292669,0.4633,2648.0,2647.7,3.77682]
[1727433292963,1.76593029,2648.2,2647.8,3.7766]
[1727433293163,1.76593029,2648.2,2647.8,8.384509]
[1727433293350,1.76593029,2648.2,2647.8,7.55322]
[1727433294350,4.23931,2648.3,2647.8,3.7766]
[1727433294588,0.4633,2648.3,2647.9,3.7765]
[1727433294955,1.64731905,2648.3,2647.6,0.7594]
[1727433295160,7.60194052,2647.7,2647.3,0.129607]
[1727433295701,3.82506052,2647.7,2647.3,0.129607]
[1727433296395,5.00926557,2647.7,2647.3,0.129607]
[1727433296694,8.78613557,2647.7,2647.3,0.129607]
[1727433296890,4.28836052,2647.5,2647.3,0.129607]
[1727433297091,0.4633,2647.5,2647.3,0.129607]
[1727433297498,4.28836052,2647.5,2647.3,0.129607]
[1727433297791,3.77729,2647.4,2647.3,0.129607]
[1727433299460,4.28836052,2647.5,2647.3,0.129607]
[1727433299879,0.4633,2647.5,2647.3,0.129607]
[1727433300161,3.77704,2647.6,2647.3,0.129607]
[1727433300377,8.06534052,2647.7,2647.3,0.129607]
[1727433300698,0.4633,2647.7,2647.3,0.129607]
[1727433300871,11.84173052,2647.9,2647.3,3.907007]
[1727433301071,11.84175052,2647.9,2647.3,4.7579547]
[1727433301496,11.84171052,2647.9,2647.3,4.7579547]
[1727433301702,8.06503052,2647.9,2647.3,4.7579547]
[1727433301918,11.84171052,2647.9,2647.3,4.7579547]
[1727433302074,8.06503052,2647.9,2647.3,4.7579547]
[1727433302589,11.84169052,2647.9,2647.3,4.7579547]
[1727433302789,4.23996,2647.9,2647.3,4.7579547]
[1727433302991,4.23996,2647.9,2647.4,4.33554547]
[1727433303175,3.77666,2647.9,2647.4,0.55825547]
[1727433303368,3.77666,2647.9,2647.5,0.8232]
[1727433303796,7.55332,2647.9,2647.5,0.8232]
[1727433303980,7.55334,2647.9,2647.5,0.8232]
[1727433304400,3.77666,2647.9,2647.5,0.8232]
[1727433304571,7.55332,2647.9,2647.5,1.35203925]
[1727433305094,3.77666,2647.9,2647.5,1.35203925]
[1727433305409,3.77675,2647.8,2647.5,0.8232]
[1727433305974,3.77675,2647.8,2647.3,4.712527]
[1727433306214,0.4633,2647.7,2647.3,0.935107]
[1727433306412,8.06529052,2647.7,2647.3,0.129607]
[1727433307515,0.4633,2647.7,2647.3,0.129607]
[1727433307717,0.4633,2647.7,2647.3,0.9733897]
[1727433308385,3.77675,2647.8,2647.3,0.9733897]
[1727433308575,4.28836052,2647.9,2647.4,3.77728]
[1727433308778,4.28836052,2647.9,2647.3,4.7506897]
[1727433309316,8.06495052,2647.9,2647.4,3.77727]
[1727433309525,0.4633,2648.1,2647.6,3.77693]
[1727433309825,7.60128052,2648.2,2647.7,3.77685]
[1727433310116,3.82506052,2648.2,2647.6,8.4737306]
[1727433310320,3.82506052,2648.2,2647.6,3.77692]
[1727433310622,7.60121052,2648.2,2647.6,7.55383]
[1727433310915,3.77615,2648.2,2647.7,0.84211596]
[1727433311307,4.23931,2648.3,2647.7,0.84211596]
[1727433311620,4.23931,2648.3,2647.7,3.77673]
[1727433311621,3.77615,2648.2,2647.7,3.77673]
[1727433311821,7.60135052,2648.1,2647.6,0.7736]
[1727433312029,3.77665,2647.9,2647.3,4.680557]
[1727433312227,3.82506052,2648.1,2647.5,4.5507]
[1727433312516,3.77649,2648.0,2647.5,4.5507]
[1727433312723,7.60148052,2648.1,2647.6,3.77698]
[1727433312885,3.77623,2648.2,2647.6,0.87957357]
[1727433313105,3.77629,2648.1,2647.6,0.87957357]
[1727433313504,0.4633,2648.0,2647.5,0.7736]
[1727433313726,3.7766,2647.9,2647.5,0.7736]
[1727433314513,0.4633,2648.0,2647.5,0.7736]
[1727433315349,4.23982,2648.0,2647.5,0.7736]
[1727433315756,0.4633,2648.0,2647.5,0.7736]
[1727433316047,3.77609,2648.3,2647.7,4.54326]
[1727433316231,7.60115052,2648.3,2647.7,4.54326]
[1727433316433,3.77615,2648.2,2647.7,4.54326]
[1727433316943,7.60115052,2648.3,2647.8,7.55336]
[1727433317119,3.82506052,2648.3,2647.9,3.77646]
[1727433317324,0.4633,2648.4,2647.8,3.77668]
[1727433317640,7.60142052,2648.1,2647.5,4.60249]
[1727433317807,8.06472052,2648.1,2647.5,0.8254]
[1727433318008,8.06439052,2648.3,2647.6,3.77699]
[1727433318247,8.06439052,2648.3,2647.7,3.77678]
[1727433318551,8.06439052,2648.3,2647.8,4.60202]
[1727433319744,7.60109052,2648.3,2647.8,4.60202]
[1727433321839,11.37717052,2648.3,2647.8,4.60202]
[1727433322040,3.77622,2648.2,2647.8,0.8254]
[1727433322227,3.77631,2648.1,2647.8,0.8254]
[1727433322541,3.77631,2648.1,2647.6,4.5726]
[1727433322847,8.06467052,2648.1,2647.6,4.5726]
[1727433324417,0.4633,2648.1,2647.7,3.77682]
[1727433326657,0.4633,2648.1,2647.7,3.77679]
[1727433326859,0.4633,2648.1,2647.8,3.77671]
[1727433327277,11.37723052,2648.3,2647.8,3.77671]
[1727433327429,7.60114052,2648.3,2647.8,3.77671]
[1727433327756,11.37723052,2648.3,2647.8,3.77671]
[1727433327959,3.82506052,2648.3,2647.9,3.77651]
[1727433328259,3.82506052,2648.3,2647.8,3.77671]
[1727433328462,4.63149157,2648.3,2647.6,4.57259]
[1727433328659,0.4633,2648.0,2647.6,4.57259]
[1727433330358,0.4633,2648.0,2647.6,8.34947]
[1727433330959,3.77626,2648.2,2647.7,3.77679]
[1727433331134,4.28836052,2648.3,2647.8,3.77661]
[1727433331336,4.28836052,2648.3,2648.0,3.77635]
[1727433331535,3.82506052,2648.3,2648.0,4.52725]
[1727433331747,4.23909,2648.5,2648.0,4.52725]
[1727433331950,4.23909,2648.5,2648.0,8.30358]
[1727433332152,4.23909,2648.5,2648.0,4.52723]
[1727433332654,3.77587,2648.4,2648.0,4.52723]
[1727433333027,3.77587,2648.4,2648.0,0.7509]
[1727433333768,4.23909,2648.5,2648.0,0.7509]
[1727433333977,4.23909,2648.5,2648.0,4.52724]
[1727433334434,4.23909,2648.5,2648.0,0.7509]
[1727433334632,3.77587,2648.4,2648.0,0.7509]
[1727433335066,4.23909,2648.5,2648.0,0.7509]
[1727433335266,4.23909,2648.5,2648.0,4.52724]
[1727433335435,3.77589,2648.4,2648.0,0.7509]
[1727433336433,3.77601,2648.3,2647.8,5.028691]
[1727433336768,3.77601,2648.3,2647.8,0.7948]
[1727433336958,3.77615,2648.2,2647.8,0.7948]
[1727433337470,7.55214,2648.3,2647.8,4.57151]
[1727433337680,3.77601,2648.3,2647.8,4.57151]
[1727433338336,0.4633,2648.2,2647.8,3.77671]
[1727433339042,3.77601,2648.3,2647.9,0.7749]
[1727433339373,4.28836052,2648.4,2647.9,0.7749]
[1727433339574,3.77609,2648.3,2647.9,0.7749]
[1727433340344,3.77609,2648.3,2647.9,4.55146]
[1727433340545,8.06423052,2648.4,2647.9,4.55146]
[1727433341180,8.06423052,2648.4,2648.0,3.77642]
[1727433341181,3.82506052,2648.4,2648.0,3.77642]
[1727433341480,7.60093052,2648.4,2647.9,4.55146]
[1727433341773,7.60093052,2648.4,2647.9,4.55136]
[1727433341979,3.82506052,2648.4,2648.0,3.77641]
[1727433342281,3.77573,2648.5,2648.1,3.77628]
[1727433342573,3.77529,2648.8,2648.3,3.77589]
[1727433342780,4.23838,2649.0,2648.5,4.59051]
[1727433342949,3.77519,2648.9,2648.5,0.8148]
[1727433343481,4.23838,2649.0,2648.5,0.8148]
[1727433343482,4.23838,2649.0,2648.5,4.59052]
[1727433343657,3.77508,2649.0,2648.5,4.59052]
[1727433344484,3.77508,2649.0,2648.5,0.8148]
[1727433345481,3.77508,2649.0,2648.5,4.59048]
[1727433345641,3.77508,2649.0,2648.5,0.8148]
[1727433345841,3.77518,2648.9,2648.5,0.8148]
[1727433346243,3.77508,2649.0,2648.5,0.8148]
[1727433346584,4.2386,2648.8,2648.3,4.52619]
[1727433347088,3.77544,2648.7,2648.3,0.7503]
[1727433347587,7.551,2648.7,2648.3,0.7503]
[1727433347766,3.77544,2648.7,2648.3,0.7503]
[1727433348843,4.23868,2648.8,2648.3,4.5262]
[1727433349177,3.77545,2648.7,2648.3,0.7503]
[1727433351610,0.4633,2648.8,2648.3,4.52629]
[1727433351890,3.77547,2648.7,2648.3,0.7503]
[1727433352061,3.82506052,2648.7,2648.3,0.7503]
[1727433352247,3.77558,2648.6,2648.3,0.7503]
[1727433352447,3.77558,2648.6,2647.9,3.77649]
[1727433352448,2.33144631,2649.5,2648.5,1.76497328]
[1727433352650,2.33144631,2649.9,2649.4,0.8286]
[1727433352855,4.16806684,2650.2,2649.5,3.77416]
[1727433352856,2.33144631,2650.2,2649.5,3.77416]
[1727433353082,1.76497328,2650.3,2649.7,0.8281]
[1727433353282,0.4633,2650.4,2649.7,0.8281]
[1727433353482,0.4633,2650.4,2649.8,3.84922132]
[1727433353658,1.76497328,2650.5,2649.9,0.84511913]
[1727433354384,3.81895772,2650.5,2649.9,0.84511913]
[1727433356057,3.81895772,2650.2,2649.4,4.53643]
[1727433356262,3.81895772,2649.9,2649.4,0.762]
[1727433356559,4.28225772,2649.9,2649.4,0.762]
[1727433356765,3.81895772,2649.5,2649.1,0.8274]
[1727433359704,3.81895772,2649.5,2649.1,4.60226]
[1727433359888,3.81895772,2649.7,2649.1,4.60226]
[1727433360091,0.75928277,2649.6,2649.1,4.60226]
[1727433362112,3.81895772,2649.7,2649.4,3.77441]
[1727433362297,7.3,2650.0,2649.5,3.77418]
[1727433362504,7.3,2650.0,2649.6,0.7788]
[1727433363134,3.81895772,2649.8,2649.6,4.55291]
[1727433363907,3.81895772,2649.8,2649.6,0.7788]
[1727433366481,3.81895772,2649.8,2649.6,4.55293]
[1727433366699,3.81895772,2649.8,2649.3,4.58039]
[1727433366882,4.23706,2649.9,2649.3,4.58039]
[1727433366883,3.81895772,2649.6,2649.3,4.58039]
[1727433368120,3.81895772,2649.6,2649.3,0.8059]
[1727433368432,3.81895772,2649.4,2649.1,3.77478]
[1727433368601,3.81895772,2649.4,2649.2,3.77471]
[1727433368786,3.81895772,2649.6,2649.2,3.77471]
[1727433370612,3.81895772,2649.6,2649.2,7.54935]
[1727433370842,3.81895772,2649.6,2649.2,7.54928]
[1727433371151,3.81895772,2649.6,2649.2,3.77464]
[1727433371710,3.81895772,2649.6,2649.2,7.54927]
[1727433372211,3.81895772,2649.6,2649.2,3.77463]
[1727433372551,3.81895772,2649.6,2649.2,7.54928]
[1727433373742,3.81895772,2649.6,2649.2,3.77463]
[1727433373947,3.81895772,2649.6,2649.2,7.54926]
[1727433374112,3.81895772,2649.6,2649.2,3.77463]
[1727433374313,3.81895772,2649.6,2649.2,7.54927]
[1727433375033,3.81895772,2649.6,2649.3,3.77457]
[1727433375748,3.81895772,2649.6,2649.2,3.77463]
[1727433375950,3.81895772,2649.6,2649.2,7.54928]
[1727433376923,3.81895772,2649.6,2649.2,7.54927]
[1727433377426,3.81895772,2649.4,2649.0,0.7979]
[1727433377757,3.81895772,2649.4,2648.2,7.86621281]
[1727433377758,3.81895772,2649.1,2648.7,0.7968]